fUST/lending_fUST_20240610
["ID","MTS","AMOUNT","RATE_DAILY","PERIOD"]
[328960116,1718031046629,-500.0,0.00020273,2]
[328960117,1718031046639,-259.28594446,0.00020273,2]
[328960119,1718031046649,-500.0,0.00020273,2]
[328960121,1718031046660,-526.28,0.00020273,2]
[328960122,1718031046670,-644.52,0.00020273,2]
[328960123,1718031046681,-500.0,0.00020273,2]
[328960124,1718031046691,-502.0,0.00020273,2]
[328960125,1718031046702,-500.0,0.00020273,2]
[328960126,1718031046712,-751.21,0.00020273,2]
[328960127,1718031046722,-500.0,0.00020273,2]
[328960128,1718031046732,-631.91,0.00020273,2]
[328960129,1718031046741,-732.48,0.00020273,2]
[328960130,1718031046751,-578.36,0.00020273,2]
[328960131,1718031046762,-500.0,0.00020273,2]
[328960132,1718031046772,-538.31,0.00020273,2]
[328960133,1718031046782,-616.56,0.00020273,2]
[328960134,1718031046793,-500.0,0.00020273,2]
[328960135,1718031046803,-676.47,0.00020273,2]
[328960136,1718031046813,-500.0,0.00020273,2]
[328960137,1718031046823,-500.0,0.00020273,2]
[328960138,1718031046832,-500.0,0.00020273,2]
[328960139,1718031046842,-500.0,0.00020273,2]
[328960140,1718031046852,-672.17,0.00020273,2]
[328960141,1718031046862,-500.0,0.00020273,2]
[328960142,1718031046872,-500.0,0.00020273,2]
[328960143,1718031046882,-821.73,0.00020273,2]
[328960144,1718031046892,-513.59,0.00020273,2]
[328960145,1718031046902,-2643.1,0.00020273,2]
[328960146,1718031046913,-749.85,0.00020273,2]
[328960147,1718031046923,-1427.82,0.00020273,2]
[328960148,1718031046932,-500.0,0.00020273,2]
[328960149,1718031046942,-500.0,0.00020273,2]
[328960150,1718031046952,-449.05,0.00020273,2]
[328960151,1718031046962,-1422.77,0.00020273,2]
[328960152,1718031046972,-923.74,0.00020273,2]
[328960153,1718031046982,-658.0,0.00020273,2]
[328960154,1718031046992,-500.0,0.00020273,2]
[328960155,1718031047002,-500.0,0.00020273,2]
[328960156,1718031047012,-1692.24,0.00020273,2]
[328960157,1718031047022,-388.36,0.00020273,2]
[328960158,1718031047032,-2550.41,0.00020273,2]
[328960159,1718031047042,-500.0,0.00020273,2]
[328960160,1718031047052,-919.42,0.00020273,2]
[328960161,1718031047061,-500.0,0.00020273,2]
[328960162,1718031047071,-500.0,0.00020273,2]
[328960163,1718031047081,-500.0,0.00020273,2]
[328960164,1718031047090,-522.47445496,0.00020273,2]
[328960165,1718031047100,-500.0,0.00020273,2]
[328960166,1718031047110,-500.0,0.00020273,2]
[328960167,1718031047120,-1621.36,0.00020273,2]
[328960168,1718031047129,-300.85688295,0.00020273,2]
[328960169,1718031047138,-500.0,0.00020273,2]
[328960170,1718031047148,-500.0,0.00020273,2]
[328960171,1718031047158,-500.0,0.00020273,2]
[328960173,1718031047168,-528.82,0.00020273,2]
[328960175,1718031047177,-590.13,0.00020273,2]
[328960177,1718031047187,-500.0,0.00020273,2]
[328960179,1718031047197,-500.0,0.00020273,2]
[328960181,1718031047207,-648.7145616,0.00020273,2]
[328960183,1718031047217,-530.57,0.00020273,2]
[328960185,1718031047227,-500.0,0.00020273,2]
[328960187,1718031047240,-500.0,0.00020273,2]
[328960189,1718031047250,-553.91,0.00020273,2]
[328960191,1718031047262,-1530.1,0.00020273,2]
[328960193,1718031047271,-564.21518899,0.00020273,2]
[328960195,1718031047283,-868.98,0.00020273,2]
[328960197,1718031047292,-2981.45,0.00020273,2]
[328960199,1718031047302,-1386.61,0.00020273,2]
[328960201,1718031047312,-500.0,0.00020273,2]
[328960203,1718031047323,-500.0,0.00020273,2]
[328960205,1718031047334,-2618.6,0.00020273,2]
[328960207,1718031047344,-500.0,0.00020273,2]
[328960209,1718031047354,-500.0,0.00020273,2]
[328960211,1718031047364,-182.6,0.00020329,3]
[328960214,1718031047374,-457.0,0.00020538,3]
[328960216,1718031047384,-500.0,0.00020547,2]
[328960218,1718031047394,-500.0,0.00020547,2]
[328960220,1718031047404,-368.55,0.00020547,2]
[328960222,1718031047413,-277.81,0.00020547,2]
[328960224,1718031047423,-526.28,0.00020547,2]
[328960226,1718031047433,-500.0,0.00020547,2]
[328960228,1718031047443,-500.0,0.00020547,2]
[328960230,1718031047452,-751.21,0.00020547,2]
[328960232,1718031047462,-543.53,0.00020547,2]
[328960234,1718031047471,-732.48,0.00020547,2]
[328960235,1718031047481,-538.31,0.00020547,2]
[328960238,1718031047491,-616.56,0.00020547,2]
[328960240,1718031047500,-500.0,0.00020547,2]
[328960242,1718031047511,-676.47,0.00020547,2]
[328960244,1718031047521,-500.0,0.00020547,2]
[328960246,1718031047531,-500.0,0.00020547,2]
[328960248,1718031047541,-500.0,0.00020547,2]
[328960250,1718031047551,-672.17,0.00020547,2]
[328960252,1718031047561,-591.2,0.00020547,2]
[328960254,1718031047571,-500.0,0.00020547,2]
[328960256,1718031047581,-821.73,0.00020547,2]
[328960258,1718031047591,-513.59,0.00020547,2]
[328960260,1718031047601,-2643.1,0.00020547,2]
[328960262,1718031047611,-749.85,0.00020547,2]
[328960264,1718031047621,-1427.82,0.00020547,2]
[328960266,1718031047631,-500.0,0.00020547,2]
[328960271,1718031047669,-500.0,0.00020547,2]
[328960273,1718031047679,-1422.77,0.00020547,2]
[328960275,1718031047688,-923.74,0.00020547,2]
[328960277,1718031047697,-658.0,0.00020547,2]
[328960278,1718031047708,-500.0,0.00020547,2]
[328960280,1718031047718,-263.91,0.00020547,2]
[328960283,1718031047727,-1692.24,0.00020547,2]
[328960284,1718031047737,-2550.41,0.00020547,2]
[328960287,1718031047747,-500.0,0.00020547,2]
[328960288,1718031047758,-919.42,0.00020547,2]
[328960290,1718031047767,-500.0,0.00020547,2]
[328960291,1718031047777,-500.0,0.00020547,2]
[328960292,1718031047787,-500.0,0.00020547,2]
[328960293,1718031047797,-211.6276484,0.00020547,2]
[328960294,1718031047806,-500.0,0.00020547,2]
[328960295,1718031047816,-1621.36,0.00020547,2]
[328960296,1718031047825,-645.46,0.00020547,2]
[328960297,1718031047835,-248.59,0.00020547,2]
[328960298,1718031047845,-286.24853813,0.00020547,2]
[328960299,1718031047854,-590.13,0.00020547,2]
[328960300,1718031047863,-180.74293219,0.00020547,2]
[328960302,1718031047873,-500.0,0.00020547,2]
[328960304,1718031047883,-530.57,0.00020547,2]
[328960306,1718031047892,-500.0,0.00020547,2]
[328960307,1718031047902,-500.0,0.00020547,2]
[328960310,1718031047912,-553.91,0.00020547,2]
[328960313,1718031047921,-1530.1,0.00020547,2]
[328960316,1718031047931,-868.98,0.00020547,2]
[328960319,1718031047941,-2981.45,0.00020547,2]
[328960321,1718031047950,-1386.61,0.00020547,2]
[328960323,1718031047960,-358.72,0.00020547,2]
[328960325,1718031047970,-2618.6,0.00020547,2]
[328960327,1718031047980,-500.0,0.00020547,2]
[328960329,1718031047990,-516.22,0.00020547,2]
[328960331,1718031048000,-153.0,0.00020738,2]
[328960333,1718031048011,-153.0,0.00020738,2]
[328960335,1718031048021,-153.0,0.00020738,2]
[328960337,1718031048031,-153.0,0.00020738,2]
[328960339,1718031048040,-153.0,0.00020738,2]
[328960341,1718031048050,-153.0,0.00020738,2]
[328960343,1718031048060,-153.0,0.00020744,2]
[328960345,1718031048070,-153.0,0.00020744,2]
[328960347,1718031048080,-153.0,0.00020744,2]
[328960348,1718031048090,-1536.00578304,0.00020819,2]
[328960350,1718031048100,-225.1695884,0.00020821,2]
[328960352,1718031048110,-13481.93972849,0.00020821,2]
[328960354,1718031048120,-500.0,0.00020821,2]
[328960356,1718031048130,-500.0,0.00020821,2]
[328960358,1718031048140,-526.28,0.00020821,2]
[328960361,1718031048151,-500.0,0.00020821,2]
[328960362,1718031048161,-500.0,0.00020821,2]
[328960364,1718031048170,-751.21,0.00020821,2]
[328960366,1718031048179,-732.48,0.00020821,2]
[328960368,1718031048189,-538.31,0.00020821,2]
[328960370,1718031048199,-616.56,0.00020821,2]
[328960372,1718031048208,-500.0,0.00020821,2]
[328960374,1718031048218,-676.47,0.00020821,2]
[328960376,1718031048227,-500.0,0.00020821,2]
[328960378,1718031048240,-500.0,0.00020821,2]
[328960380,1718031048249,-500.0,0.00020821,2]
[328960382,1718031048259,-672.17,0.00020821,2]
[328960384,1718031048269,-500.0,0.00020821,2]
[328960386,1718031048278,-821.73,0.00020821,2]
[328960388,1718031048287,-513.59,0.00020821,2]
[328960390,1718031048297,-2643.1,0.00020821,2]
[328960392,1718031048306,-749.85,0.00020821,2]
[328960394,1718031048319,-1427.82,0.00020821,2]
[328960396,1718031048329,-500.0,0.00020821,2]
[328960398,1718031048339,-500.0,0.00020821,2]
[328960400,1718031048348,-1422.77,0.00020821,2]
[328960402,1718031048357,-923.74,0.00020821,2]
[328960404,1718031048367,-658.0,0.00020821,2]
[328960406,1718031048376,-500.0,0.00020821,2]
[328960408,1718031048386,-1692.24,0.00020821,2]
[328960410,1718031048395,-2550.41,0.00020821,2]
[328960412,1718031048405,-500.0,0.00020821,2]
[328960414,1718031048415,-919.42,0.00020821,2]
[328960416,1718031048425,-500.0,0.00020821,2]
[328960418,1718031048434,-187.49206613,0.00020821,2]
[328960425,1718031048604,-500.0,0.00019178,2]
[328960426,1718031048614,-500.0,0.00019178,2]
[328960427,1718031048624,-473.43389354,0.00019452,2]
[328960428,1718031048640,-26.56610646,0.00019452,2]
[328960429,1718031048650,-500.0,0.00019726,2]
[328960430,1718031048660,-500.0,0.0002,2]
[328960431,1718031048670,-645.61,0.00020273,2]
[328960432,1718031048680,-312.50793387,0.00020821,2]
[328960433,1718031048690,-500.0,0.00020821,2]
[328960434,1718031048700,-500.0,0.00020821,2]
[328960435,1718031048712,-1621.36,0.00020821,2]
[328960436,1718031048722,-590.13,0.00020821,2]
[328960437,1718031048733,-500.0,0.00020821,2]
[328960438,1718031048743,-530.57,0.00020821,2]
[328960439,1718031048753,-500.0,0.00020821,2]
[328960440,1718031048764,-500.0,0.00020821,2]
[328960441,1718031048773,-553.91,0.00020821,2]
[328960443,1718031048783,-1530.1,0.00020821,2]
[328960445,1718031048793,-49.73107578,0.00020821,2]
[328960450,1718031048827,-819.24892422,0.00020821,2]
[328960452,1718031048837,-2981.45,0.00020821,2]
[328960454,1718031048847,-1386.61,0.00020821,2]
[328960456,1718031048857,-2618.6,0.00020821,2]
[328960458,1718031048867,-500.0,0.00020821,2]
[328960460,1718031048876,-182.6,0.00020969,5]
[328960462,1718031048887,-600.0,0.00020992,2]
[328960464,1718031048897,-1098.09684969,0.00021,2]
[328960466,1718031048907,-796.10207888,0.00021,2]
[328960468,1718031048917,-1000.0,0.00021,7]
[328960470,1718031048926,-633.06151663,0.0002108,2]
[328960472,1718031048937,-500.0,0.00021095,2]
[328960475,1718031048947,-500.0,0.00021095,2]
[328960476,1718031048957,-226.23853259,0.00021095,2]
[328960482,1718031048999,-300.04146741,0.00021095,2]
[328960484,1718031049012,-500.0,0.00021095,2]
[328960485,1718031049022,-500.0,0.00021095,2]
[328960487,1718031049032,-751.21,0.00021095,2]
[328960489,1718031049041,-732.48,0.00021095,2]
[328960491,1718031049051,-538.31,0.00021095,2]
[328960494,1718031049061,-616.56,0.00021095,2]
[328960496,1718031049071,-437.18545214,0.00021095,2]
[328960498,1718031049081,-676.47,0.00021095,2]
[328960500,1718031049091,-500.0,0.00021095,2]
[328960502,1718031049101,-288.82114344,0.00021095,2]
[328960504,1718031049111,-500.0,0.00021095,2]
[328960506,1718031049121,-672.17,0.00021095,2]
[328960507,1718031049131,-500.0,0.00021095,2]
[328960509,1718031049141,-821.73,0.00021095,2]
[328960512,1718031049151,-513.59,0.00021095,2]
[328960513,1718031049160,-2643.1,0.00021095,2]
[328960515,1718031049169,-749.85,0.00021095,2]
[328960517,1718031049179,-1427.82,0.00021095,2]
[328960518,1718031049188,-500.0,0.00021095,2]
[328960520,1718031049198,-500.0,0.00021095,2]
[328960522,1718031049208,-1422.77,0.00021095,2]
[328960524,1718031049218,-923.74,0.00021095,2]
[328960525,1718031049228,-658.0,0.00021095,2]
[328960526,1718031049241,-500.0,0.00021095,2]
[328960527,1718031049251,-1692.24,0.00021095,2]
[328960528,1718031049262,-2550.41,0.00021095,2]
[328960529,1718031049275,-500.0,0.00021095,2]
[328960530,1718031049287,-919.42,0.00021095,2]
[328960531,1718031049296,-500.0,0.00021095,2]
[328960532,1718031049307,-500.0,0.00021095,2]
[328960533,1718031049319,-500.0,0.00021095,2]
[328960534,1718031049328,-500.0,0.00021095,2]
[328960535,1718031049338,-1621.36,0.00021095,2]
[328960536,1718031049347,-590.13,0.00021095,2]
[328960537,1718031049358,-500.0,0.00021095,2]
[328960538,1718031049368,-530.57,0.00021095,2]
[328960539,1718031049378,-500.0,0.00021095,2]
[328960540,1718031049388,-500.0,0.00021095,2]
[328960541,1718031049398,-553.91,0.00021095,2]
[328960542,1718031049408,-1530.1,0.00021095,2]
[328960543,1718031049417,-868.98,0.00021095,2]
[328960544,1718031049428,-2981.45,0.00021095,2]
[328960546,1718031049437,-1386.61,0.00021095,2]
[328960548,1718031049447,-2618.6,0.00021095,2]
[328960550,1718031049457,-500.0,0.00021095,2]
[328960552,1718031049467,-367.0,0.00021166,5]
[328960554,1718031049478,-600.0,0.00021168,2]
[328960556,1718031049488,-432.12729194,0.00021369,2]
[328960558,1718031049501,-67.87270806,0.00021369,2]
[328960560,1718031049513,-500.0,0.00021369,2]
[328960562,1718031049523,-526.28,0.00021369,2]
[328960564,1718031049533,-524.93996593,0.00021369,2]
[328960566,1718031049543,-500.0,0.00021369,2]
[328960568,1718031049553,-751.21,0.00021369,2]
[328960570,1718031049563,-732.48,0.00021369,2]
[328960572,1718031049573,-538.31,0.00021369,2]
[328960574,1718031049583,-616.56,0.00021369,2]
[328960576,1718031049593,-676.47,0.00021369,2]
[328960578,1718031049603,-500.0,0.00021369,2]
[328960580,1718031049613,-500.0,0.00021369,2]
[328960582,1718031049623,-672.17,0.00021369,2]
[328960584,1718031049633,-500.0,0.00021369,2]
[328960587,1718031049643,-821.73,0.00021369,2]
[328960589,1718031049653,-513.59,0.00021369,2]
[328960591,1718031049663,-2643.1,0.00021369,2]
[328960593,1718031049673,-749.85,0.00021369,2]
[328960595,1718031049683,-1427.82,0.00021369,2]
[328960597,1718031049693,-6.81732601,0.00021369,2]
[328960599,1718031049709,-370.33268568,0.00021369,2]
[328960612,1718031049830,-122.84998831,0.00021369,2]
[328960614,1718031049841,-348.52357147,0.00021369,2]
[328960617,1718031049853,-151.47642853,0.00021369,2]
[328960619,1718031049863,-840.24138307,0.00021369,2]
[328960629,1718031049958,-3.0,0.00021369,2]
[328961208,1718031205885,155.01550155,9.999e-05,2]
[328961209,1718031626307,155.01550155,9.999e-05,2]
[328961210,1718031638231,1518.16131932,9.999e-05,2]
[328961304,1718032234471,-1518.16131932,0.00018143,2]
[328961306,1718032234482,-5078.8692688,0.00018144,2]
[328961308,1718032234492,-428.20409832,0.000189,2]
[328961311,1718032234505,-237.12999928,0.000189,2]
[328961313,1718032234515,-124.34837616,0.00019016,3]
[328961315,1718032234526,-27.25162384,0.00019016,3]
[328961317,1718032234536,-162.85646874,0.00019075,2]
[328961318,1718032234546,-300.0,0.00019168,2]
[328961335,1718032234708,-300.0,0.00019168,2]
[328961337,1718032234719,-155.04203482,0.00019169,2]
[328961339,1718032234729,-1444.57547444,0.00019169,2]
[328961341,1718032234742,-3357.37299193,0.0001917,2]
[328961343,1718032234753,-16644.72555229,0.00019171,2]
[328961346,1718032234763,-209.17920224,0.00019172,2]
[328961348,1718032234773,-310.02790252,0.00019172,2]
[328961350,1718032234783,-1632.58637617,0.00019172,7]
[328961352,1718032234793,-11097.15193042,0.00019173,2]
[328961354,1718032234803,-179.78860579,0.00019174,2]
[328961356,1718032234814,-19310.35733687,0.00019174,2]
[328961358,1718032234826,-155.70808854,0.00019175,2]
[328961360,1718032234837,-11111.83534931,0.00019175,2]
[328961362,1718032234847,-610.53370792,0.00019176,2]
[328961364,1718032234857,-155.105567,0.00019176,2]
[328961366,1718032234868,-190.40082049,0.00019176,2]
[328961368,1718032234878,-211.51208943,0.00019176,2]
[328961370,1718032234887,-181.70453988,0.00019176,2]
[328961372,1718032234897,-275.55259809,0.00019176,2]
[328961374,1718032234907,-7909.30313863,0.00019176,2]
[328961376,1718032234916,-1150.18520178,0.00019176,2]
[328961378,1718032234926,-302.36611222,0.00019176,2]
[328961380,1718032234936,-164.59629886,0.00019176,2]
[328961382,1718032234945,-1229.66342147,0.00019176,2]
[328961813,1718032245913,10000.0,0.00016,2]
[328962090,1718032248911,-1393.4,0.00019176,2]
[328962092,1718032248924,-398.141,0.00019176,2]
[328962095,1718032248936,-2978.79557853,0.00019176,2]
[328962097,1718032248946,-505.78237993,0.00019178,2]
[328962099,1718032248956,-500.0,0.00019178,2]
[328962101,1718032248966,-500.0,0.00019178,2]
[328962103,1718032248976,-514.16751253,0.00019178,2]
[328962105,1718032248986,-225.35648091,0.00019178,2]
[328962106,1718032248997,-500.0,0.00019178,2]
[328962108,1718032249007,-500.0,0.00019178,2]
[328962110,1718032249018,-500.0,0.00019178,2]
[328962112,1718032249028,-500.0,0.00019178,2]
[328962114,1718032249038,-612.58982286,0.00019178,2]
[328962116,1718032249048,-500.0,0.00019178,2]
[328962118,1718032249057,-500.0,0.00019178,2]
[328962120,1718032249068,-500.0,0.00019178,2]
[328962122,1718032249078,-500.0,0.00019178,2]
[328962124,1718032249088,-500.0,0.00019178,2]
[328962126,1718032249098,-500.0,0.00019178,2]
[328962128,1718032249108,-500.0,0.00019178,2]
[328962130,1718032249118,-500.0,0.00019178,2]
[328962132,1718032249129,-500.0,0.00019178,2]
[328962134,1718032249140,-500.0,0.00019178,2]
[328962136,1718032249150,-500.0,0.00019178,2]
[328962138,1718032249161,-500.0,0.00019178,2]
[328962140,1718032249171,-175.92002555,0.00019178,2]
[328962143,1718032249185,-500.0,0.00019178,2]
[328962145,1718032249196,-500.0,0.00019178,2]
[328962147,1718032249206,-421.790358,0.00019178,2]
[328962149,1718032249216,-500.0,0.00019178,2]
[328962151,1718032249227,-500.0,0.00019178,2]
[328962153,1718032249237,-500.0,0.00019178,2]
[328962155,1718032249248,-500.0,0.00019178,2]
[328962157,1718032249258,-500.0,0.00019178,2]
[328962159,1718032249269,-500.0,0.00019178,2]
[328962161,1718032249280,-500.0,0.00019178,2]
[328962163,1718032249289,-500.0,0.00019178,2]
[328962165,1718032249300,-500.0,0.00019178,2]
[328962167,1718032249312,-500.0,0.00019178,2]
[328962169,1718032249321,-500.0,0.00019178,2]
[328962171,1718032249331,-500.0,0.00019178,2]
[328962173,1718032249342,-500.0,0.00019178,2]
[328962175,1718032249352,-500.0,0.00019178,2]
[328962177,1718032249362,-621.88,0.00019178,2]
[328962179,1718032249372,-500.0,0.00019178,2]
[328962181,1718032249382,-500.0,0.00019178,2]
[328962183,1718032249392,-500.0,0.00019178,2]
[328962185,1718032249402,-379.42040012,0.00019178,2]
[328962187,1718032249412,-500.0,0.00019178,2]
[328962189,1718032249422,-500.0,0.00019178,2]
[328962191,1718032249432,-500.0,0.00019178,2]
[328962193,1718032249442,-500.0,0.00019178,2]
[328962195,1718032249452,-562.95,0.00019178,2]
[328962197,1718032249462,-500.0,0.00019178,2]
[328962199,1718032249472,-500.0,0.00019178,2]
[328962201,1718032249483,-500.0,0.00019178,2]
[328962203,1718032249493,-500.0,0.00019178,2]
[328962205,1718032249503,-500.0,0.00019178,2]
[328962207,1718032249514,-500.0,0.00019178,2]
[328962209,1718032249523,-500.0,0.00019178,2]
[328962211,1718032249534,-500.0,0.00019178,2]
[328962213,1718032249545,-500.0,0.00019178,2]
[328962215,1718032249555,-200.0,0.00019178,2]
[328962217,1718032249566,-500.0,0.00019178,2]
[328962219,1718032249576,-500.0,0.00019178,2]
[328962221,1718032249586,-500.0,0.00019178,2]
[328962223,1718032249596,-500.0,0.00019178,2]
[328962225,1718032249606,-500.0,0.00019178,2]
[328962227,1718032249616,-500.0,0.00019178,2]
[328962229,1718032249626,-500.0,0.00019178,2]
[328962231,1718032249636,-500.0,0.00019178,2]
[328962233,1718032249647,-500.0,0.00019178,2]
[328962235,1718032249661,-500.0,0.00019178,2]
[328962237,1718032249671,-500.0,0.00019178,2]
[328962239,1718032249681,-500.0,0.00019178,2]
[328962241,1718032249691,-500.0,0.00019178,2]
[328962243,1718032249702,-408.02463795,0.00019178,2]
[328962245,1718032249712,-500.0,0.00019178,2]
[328962247,1718032249722,-530.43445442,0.00019178,2]
[328962249,1718032249732,-507.92,0.00019178,2]
[328962251,1718032249744,-500.0,0.00019178,2]
[328962253,1718032249754,-500.0,0.00019178,2]
[328962255,1718032249763,-500.0,0.00019178,2]
[328962257,1718032249773,-500.0,0.00019178,2]
[328962259,1718032249783,-500.0,0.00019178,2]
[328962261,1718032249793,-500.0,0.00019178,2]
[328962263,1718032249803,-500.0,0.00019178,2]
[328962265,1718032249813,-500.0,0.00019178,2]
[328962267,1718032249823,-500.0,0.00019178,2]
[328962269,1718032249833,-500.0,0.00019178,2]
[328962271,1718032249846,-193.95,0.00019178,2]
[328962273,1718032249855,-500.0,0.00019178,2]
[328962275,1718032249865,-507.4,0.00019178,2]
[328962277,1718032249875,-500.0,0.00019178,2]
[328962279,1718032249885,-500.0,0.00019178,2]
[328962281,1718032249895,-500.0,0.00019178,2]
[328962284,1718032249905,-500.0,0.00019178,2]
[328962287,1718032249915,-500.0,0.00019178,2]
[328962290,1718032249925,-500.0,0.00019178,2]
[328962293,1718032249935,-500.0,0.00019178,2]
[328962295,1718032249946,-500.0,0.00019178,2]
[328962298,1718032249956,-500.0,0.00019178,2]
[328962301,1718032249966,-500.0,0.00019178,2]
[328962304,1718032249976,-500.0,0.00019178,2]
[328962306,1718032249986,-634.31,0.00019178,2]
[328962308,1718032249996,-500.0,0.00019178,2]
[328962310,1718032250007,-500.0,0.00019178,2]
[328962312,1718032250017,-500.0,0.00019178,2]
[328962314,1718032250027,-500.0,0.00019178,2]
[328962316,1718032250037,-500.0,0.00019178,2]
[328962318,1718032250048,-1224.59,0.00019178,2]
[328962320,1718032250058,-500.0,0.00019178,2]
[328962322,1718032250068,-500.0,0.00019178,2]
[328962324,1718032250078,-500.0,0.00019178,2]
[328962326,1718032250088,-1242.4,0.00019178,2]
[328962328,1718032250098,-500.0,0.00019178,2]
[328962330,1718032250108,-764.69,0.00019178,2]
[328962332,1718032250118,-516.93,0.00019178,2]
[328962334,1718032250128,-500.0,0.00019178,2]
[328962336,1718032250139,-1420.21,0.00019178,2]
[328962338,1718032250149,-500.0,0.00019178,2]
[328962340,1718032250159,-500.0,0.00019178,2]
[328962342,1718032250169,-500.0,0.00019178,2]
[328962344,1718032250185,-500.0,0.00019178,2]
[328962346,1718032250195,-666.01,0.00019178,2]
[328962348,1718032250205,-500.0,0.00019178,2]
[328962350,1718032250216,-500.0,0.00019178,2]
[328962352,1718032250226,-500.0,0.00019178,2]
[328962354,1718032250236,-500.0,0.00019178,2]
[328962356,1718032250247,-500.0,0.00019178,2]
[328962358,1718032250257,-500.0,0.00019178,2]
[328962360,1718032250267,-500.0,0.00019178,2]
[328962362,1718032250278,-500.0,0.00019178,2]
[328962364,1718032250289,-500.0,0.00019178,2]
[328962366,1718032250299,-2580.18,0.00019178,2]
[328962368,1718032250310,-500.0,0.00019178,2]
[328962370,1718032250320,-500.0,0.00019178,2]
[328962372,1718032250330,-500.0,0.00019178,2]
[328962374,1718032250343,-500.0,0.00019178,2]
[328962376,1718032250352,-500.0,0.00019178,2]
[328962378,1718032250363,-500.0,0.00019178,2]
[328962380,1718032250373,-542.55906541,0.00019178,2]
[328962382,1718032250383,-500.0,0.00019178,2]
[328962384,1718032250394,-316.1537121,0.00019178,2]
[328962386,1718032250404,-500.0,0.00019178,2]
[328962388,1718032250415,-500.0,0.00019178,2]
[328962390,1718032250425,-500.0,0.00019178,2]
[328962392,1718032250435,-500.0,0.00019178,2]
[328962394,1718032250446,-500.0,0.00019178,2]
[328962396,1718032250456,-781.85,0.00019178,2]
[328962398,1718032250466,-500.0,0.00019178,2]
[328962400,1718032250476,-500.0,0.00019178,2]
[328962402,1718032250487,-500.0,0.00019178,2]
[328962404,1718032250497,-500.0,0.00019178,2]
[328962406,1718032250508,-500.0,0.00019178,2]
[328962408,1718032250518,-500.0,0.00019178,2]
[328962410,1718032250529,-505.02,0.00019178,2]
[328962412,1718032250539,-500.0,0.00019178,2]
[328962414,1718032250549,-500.0,0.00019178,2]
[328962416,1718032250560,-500.0,0.00019178,2]
[328962418,1718032250570,-500.0,0.00019178,2]
[328962420,1718032250581,-500.0,0.00019178,2]
[328962422,1718032250593,-500.0,0.00019178,2]
[328962424,1718032250603,-1307.57,0.00019178,2]
[328962426,1718032250613,-1269.01,0.00019178,2]
[328962428,1718032250623,-500.0,0.00019178,2]
[328962430,1718032250633,-406.67861161,0.00019178,2]
[328962432,1718032250644,-1174.14,0.00019178,2]
[328962434,1718032250654,-504.56,0.00019178,2]
[328962436,1718032250668,-500.0,0.00019178,2]
[328962438,1718032250679,-500.0,0.00019178,2]
[328962440,1718032250689,-500.0,0.00019178,2]
[328962442,1718032250699,-710.88,0.00019178,2]
[328962444,1718032250710,-500.0,0.00019178,2]
[328962445,1718032250720,-500.0,0.00019178,2]
[328962446,1718032250730,-500.0,0.00019178,2]